fUSD/lending_fUSD_20240514
["ID","MTS","AMOUNT","RATE_DAILY","PERIOD"]
[327004003,1715703042531,-500.0,0.00012979,2]
[327004004,1715703042541,-500.0,0.00012979,2]
[327004005,1715703042551,-224.1,0.00012979,2]
[327004006,1715703042560,-500.0,0.00012979,2]
[327004007,1715703042570,-500.0,0.00012979,2]
[327004008,1715703042579,-500.0,0.00012979,2]
[327004009,1715703042588,-500.0,0.00012979,2]
[327004010,1715703042598,-500.0,0.00012979,2]
[327004011,1715703042607,-500.0,0.00012979,2]
[327004012,1715703042617,-500.0,0.00012979,2]
[327004013,1715703042627,-500.0,0.00012979,2]
[327004014,1715703042636,-500.0,0.00012979,2]
[327004015,1715703042645,-500.0,0.00012979,2]
[327004016,1715703042656,-500.0,0.00012979,2]
[327004017,1715703042667,-500.0,0.00012979,2]
[327004018,1715703042677,-500.0,0.00012979,2]
[327004019,1715703042686,-500.0,0.00012979,2]
[327004020,1715703042696,-500.0,0.00012979,2]
[327004021,1715703042705,-500.0,0.00012979,2]
[327004022,1715703042714,-500.0,0.00012979,2]
[327004023,1715703042724,-500.0,0.00012979,2]
[327004024,1715703042734,-500.0,0.00012979,2]
[327004025,1715703042743,-500.0,0.00012979,2]
[327004026,1715703042753,-1459.51,0.00012979,2]
[327004027,1715703042763,-500.0,0.00012979,2]
[327004028,1715703042772,-204.51,0.00012979,2]
[327004029,1715703042782,-500.0,0.00012979,2]
[327004030,1715703042792,-500.0,0.00012979,2]
[327004031,1715703042801,-500.0,0.00012979,2]
[327004032,1715703042811,-500.0,0.00012979,2]
[327004033,1715703042820,-1122.52,0.00012979,2]
[327004034,1715703042831,-500.0,0.00012979,2]
[327004035,1715703042842,-500.0,0.00012979,2]
[327004036,1715703042851,-500.0,0.00012979,2]
[327004037,1715703042860,-610.0,0.00012979,2]
[327004038,1715703042869,-500.0,0.00012979,2]
[327004039,1715703042879,-500.0,0.00012979,2]
[327004040,1715703042888,-500.0,0.00012979,2]
[327004041,1715703042900,-500.0,0.00012979,2]
[327004042,1715703042909,-546.88,0.00012979,2]
[327004043,1715703042919,-500.0,0.00012979,2]
[327004044,1715703042929,-500.0,0.00012979,2]
[327004045,1715703042940,-500.0,0.00012979,2]
[327004046,1715703042949,-500.0,0.00012979,2]
[327004047,1715703042958,-500.0,0.00012979,2]
[327004048,1715703042968,-996.95,0.00012979,2]
[327004049,1715703042983,-500.0,0.00012979,2]
[327004050,1715703042993,-500.0,0.00012979,2]
[327004051,1715703043003,-500.0,0.00012979,2]
[327004052,1715703043015,-150.0,0.00012979,2]
[327004053,1715703043024,-505.66721516,0.00012979,2]
[327004054,1715703043034,-500.0,0.00012979,2]
[327004055,1715703043043,-500.0,0.00012979,2]
[327004056,1715703043055,-500.0,0.00012979,2]
[327004057,1715703043065,-500.0,0.00012979,2]
[327004058,1715703043074,-500.0,0.00012979,2]
[327004059,1715703043083,-500.0,0.00012979,2]
[327004060,1715703043093,-500.0,0.00012979,2]
[327004061,1715703043102,-690.24,0.00012979,2]
[327004062,1715703043111,-341.30327301,0.00012979,2]
[327004063,1715703043120,-500.0,0.00012979,2]
[327004064,1715703043130,-500.0,0.00012979,2]
[327004065,1715703043139,-554.35,0.00012979,2]
[327004066,1715703043149,-500.0,0.00012979,2]
[327004067,1715703043158,-585.83,0.00012979,2]
[327004068,1715703043168,-500.0,0.00012979,2]
[327004069,1715703043177,-500.0,0.00012979,2]
[327004070,1715703043188,-500.0,0.00012979,2]
[327004071,1715703043198,-500.0,0.00012979,2]
[327004072,1715703043207,-500.0,0.00012979,2]
[327004073,1715703043216,-500.0,0.00012979,2]
[327004075,1715703043226,-500.0,0.00012979,2]
[327004077,1715703043235,-500.0,0.00012979,2]
[327004079,1715703043245,-500.0,0.00012979,2]
[327004080,1715703043254,-618.898364,0.00012979,2]
[327004082,1715703043266,-500.0,0.00012979,2]
[327004084,1715703043276,-500.0,0.00012979,2]
[327004086,1715703043285,-500.0,0.00012979,2]
[327004088,1715703043295,-500.0,0.00012979,2]
[327004090,1715703043304,-586.56,0.00012979,2]
[327004091,1715703043314,-500.0,0.00012979,2]
[327004095,1715703043323,-500.0,0.00012979,2]
[327004099,1715703043334,-500.0,0.00012979,2]
[327004102,1715703043343,-500.0,0.00012979,2]
[327004105,1715703043352,-500.0,0.00012979,2]
[327004108,1715703043362,-500.0,0.00012979,2]
[327004111,1715703043371,-526.8,0.00012979,2]
[327004114,1715703043380,-500.0,0.00012979,2]
[327004116,1715703043390,-500.0,0.00012979,2]
[327004118,1715703043404,-500.0,0.00012979,2]
[327004120,1715703043413,-500.0,0.00012979,2]
[327004123,1715703043422,-514.56267415,0.00012979,2]
[327004126,1715703043432,-500.0,0.00012979,2]
[327004128,1715703043441,-500.0,0.00012979,2]
[327004129,1715703043450,-525.13,0.00012979,2]
[327004130,1715703043460,-500.0,0.00012979,2]
[327004132,1715703043470,-500.0,0.00012979,2]
[327004134,1715703043479,-500.0,0.00012979,2]
[327004136,1715703043489,-500.0,0.00012979,2]
[327004138,1715703043499,-500.0,0.00012979,2]
[327004140,1715703043508,-200.40324352,0.00012979,2]
[327004141,1715703043517,-500.0,0.00012979,2]
[327004142,1715703043527,-500.0,0.00012979,2]
[327004143,1715703043536,-553.41803875,0.00012979,2]
[327004144,1715703043547,-500.0,0.00012979,2]
[327004145,1715703043556,-500.0,0.00012979,2]
[327004146,1715703043566,-500.0,0.00012979,2]
[327004147,1715703043575,-500.0,0.00012979,2]
[327004148,1715703043584,-500.0,0.00012979,2]
[327004149,1715703043594,-500.0,0.00012979,2]
[327004150,1715703043603,-500.0,0.00012979,2]
[327004151,1715703043613,-500.0,0.00012979,2]
[327004152,1715703043624,-500.0,0.00012979,2]
[327004153,1715703043634,-500.0,0.00012979,2]
[327004154,1715703043643,-500.0,0.00012979,2]
[327004155,1715703043656,-500.0,0.00012979,2]
[327004156,1715703043665,-500.0,0.00012979,2]
[327004157,1715703043675,-500.0,0.00012979,2]
[327004158,1715703043685,-500.0,0.00012979,2]
[327004159,1715703043695,-500.0,0.00012979,2]
[327004160,1715703043704,-500.0,0.00012979,2]
[327004161,1715703043714,-500.0,0.00012979,2]
[327004162,1715703043723,-500.0,0.00012979,2]
[327004163,1715703043733,-500.0,0.00012979,2]
[327004164,1715703043742,-500.0,0.00012979,2]
[327004165,1715703043752,-500.0,0.00012979,2]
[327004166,1715703043762,-1250.64,0.00012979,2]
[327004167,1715703043772,-500.0,0.00012979,2]
[327004168,1715703043781,-500.0,0.00012979,2]
[327004169,1715703043791,-500.0,0.00012979,2]
[327004170,1715703043800,-528.16,0.00012979,2]
[327004172,1715703043810,-334.56748185,0.00012979,2]
[327004174,1715703043820,-500.0,0.00012979,2]
[327004176,1715703043829,-500.0,0.00012979,2]
[327004177,1715703043839,-500.0,0.00012979,2]
[327004178,1715703043848,-500.0,0.00012979,2]
[327004179,1715703043858,-500.0,0.00012979,2]
[327004180,1715703043867,-500.0,0.00012979,2]
[327004182,1715703043877,-500.0,0.00012979,2]
[327004184,1715703043886,-500.0,0.00012979,2]
[327004186,1715703043897,-551.06256038,0.00012979,2]
[327004188,1715703043907,-500.0,0.00012979,2]
[327004190,1715703043916,-1335.83,0.00012979,2]
[327004192,1715703043926,-500.0,0.00012979,2]
[327004193,1715703043935,-224.55083565,0.00012979,2]
[327004196,1715703044447,-275.44916435,0.00012979,2]
[327004197,1715703044456,-189.06406397,0.00012979,2]
[327004198,1715703044466,-263.8,0.00012979,2]
[327004199,1715703044477,-47.13593603,0.00012979,2]
[327004200,1715703044487,-500.0,0.00012979,2]
[327004201,1715703044496,-395.08313382,0.00012979,2]
[327004202,1715703044515,-104.91686618,0.00012979,2]
[327004203,1715703044525,-697.12,0.00012979,2]
[327004204,1715703044533,-500.0,0.00012979,2]
[327004205,1715703044542,-500.0,0.00012979,2]
[327004206,1715703044552,-500.0,0.00012979,2]
[327004207,1715703044561,-500.0,0.00012979,2]
[327004208,1715703044570,-500.0,0.00012979,2]
[327004209,1715703044579,-500.0,0.00012979,2]
[327004210,1715703044588,-500.0,0.00012979,2]
[327004211,1715703044598,-500.0,0.00012979,2]
[327004212,1715703044607,-1222.09,0.00012979,2]
[327004213,1715703044617,-1109.46,0.00012979,2]
[327004214,1715703044627,-500.0,0.00012979,2]
[327004215,1715703044636,-500.0,0.00012979,2]
[327004216,1715703044645,-500.0,0.00012979,2]
[327004217,1715703044656,-1118.01,0.00012979,2]
[327004218,1715703044666,-2430.9,0.00012979,2]
[327004219,1715703044674,-2430.9,0.00012979,2]
[327004220,1715703044683,-500.0,0.00012979,2]
[327004221,1715703044692,-500.0,0.00012979,2]
[327004222,1715703044701,-500.0,0.00012979,2]
[327004223,1715703044711,-624.85,0.00012979,2]
[327004224,1715703044720,-500.0,0.00012979,2]
[327004225,1715703044729,-624.85,0.00012979,2]
[327004226,1715703044738,-500.0,0.00012979,2]
[327004227,1715703044747,-626.23,0.00012979,2]
[327004228,1715703044756,-500.0,0.00012979,2]
[327004229,1715703044765,-500.0,0.00012979,2]
[327004230,1715703044774,-505.03036415,0.00012979,2]
[327004231,1715703044783,-170.15441222,0.00012979,2]
[327004232,1715703044793,-513.91468873,0.00012979,2]
[327004233,1715703044803,-500.0,0.00012979,2]
[327004234,1715703044812,-500.0,0.00012979,2]
[327004235,1715703044821,-500.0,0.00012979,2]
[327004236,1715703044830,-512.86,0.00012979,2]
[327004237,1715703044839,-500.0,0.00012979,2]
[327004238,1715703044848,-938.9,0.00012979,2]
[327004239,1715703044857,-500.0,0.00012979,2]
[327004240,1715703044867,-927.85,0.00012979,2]
[327004241,1715703044876,-927.85,0.00012979,2]
[327004242,1715703044885,-500.0,0.00012979,2]
[327004243,1715703044895,-500.0,0.00012979,2]
[327004244,1715703044905,-420.06061279,0.00012979,2]
[327004245,1715703045007,-79.93938721,0.00012979,2]
[327004246,1715703045018,-500.0,0.00012979,2]
[327004247,1715703045027,-500.0,0.00012979,2]
[327004248,1715703045037,-500.0,0.00012979,2]
[327004249,1715703045046,-500.0,0.00012979,2]
[327004250,1715703045058,-689.46,0.00012979,2]
[327004251,1715703045067,-689.46,0.00012979,2]
[327004252,1715703045076,-500.0,0.00012979,2]
[327004253,1715703045085,-500.0,0.00012979,2]
[327004254,1715703045093,-500.0,0.00012979,2]
[327004255,1715703045103,-1600.45,0.00012979,2]
[327004256,1715703045112,-500.0,0.00012979,2]
[327004257,1715703045121,-1472.15,0.00012979,2]
[327004258,1715703045130,-1039.39,0.00012979,2]
[327004259,1715703045139,-500.0,0.00012979,2]
[327004260,1715703045150,-500.0,0.00012979,2]
[327004261,1715703045159,-492.24,0.00012979,2]
[327004262,1715703045169,-685.22,0.00012979,2]
[327004263,1715703045178,-504.23534162,0.00012979,2]
[327004264,1715703045187,-243.88661636,0.00012979,2]
[327004265,1715703045196,-1232.12,0.00012979,2]
[327004266,1715703045206,-500.0,0.00012979,2]
[327004267,1715703045216,-575.75,0.00012979,2]
[327004268,1715703045225,-590.39,0.00012979,2]
[327004269,1715703045235,-590.39,0.00012979,2]
[327004270,1715703045244,-1323.14,0.00012979,2]
[327004271,1715703045253,-638.92,0.00012979,2]
[327004272,1715703045264,-500.0,0.00012979,2]
[327004273,1715703045274,-500.0,0.00012979,2]
[327004274,1715703045283,-873.45,0.00012979,2]
[327004275,1715703045293,-500.0,0.00012979,2]
[327004276,1715703045302,-152.69,0.00012979,2]
[327004277,1715703045311,-500.0,0.00012979,2]
[327004278,1715703045320,-500.0,0.00012979,2]
[327004279,1715703045328,-500.0,0.00012979,2]
[327004280,1715703045337,-500.0,0.00012979,2]
[327004281,1715703045348,-527.50499215,0.00012979,2]
[327004282,1715703045357,-185.46,0.00012979,2]
[327004283,1715703045366,-500.0,0.00012979,2]
[327004284,1715703045375,-500.0,0.00012979,2]
[327004285,1715703045384,-500.0,0.00012979,2]
[327004286,1715703045393,-826.6,0.00012979,2]
[327004287,1715703045404,-944.27,0.00012979,2]
[327004288,1715703045413,-944.27,0.00012979,2]
[327004289,1715703045422,-639.53,0.00012979,2]
[327004290,1715703045432,-500.0,0.00012979,2]
[327004291,1715703045441,-562.42,0.00012979,2]
[327004292,1715703045450,-500.0,0.00012979,2]
[327004293,1715703045459,-500.0,0.00012979,2]
[327004294,1715703045468,-500.0,0.00012979,2]
[327004295,1715703045478,-500.0,0.00012979,2]
[327004296,1715703045487,-500.0,0.00012979,2]
[327004297,1715703045496,-500.0,0.00012979,2]
[327004298,1715703045505,-2715.59,0.00012979,2]
[327004299,1715703045514,-500.0,0.00012979,2]
[327004300,1715703045523,-500.0,0.00012979,2]
[327004301,1715703045532,-500.0,0.00012979,2]
[327004302,1715703045542,-500.0,0.00012979,2]
[327004303,1715703045550,-500.0,0.00012979,2]
[327004304,1715703045559,-842.56,0.00012979,2]
[327004305,1715703045569,-500.0,0.00012979,2]
[327004306,1715703045578,-3001.84,0.00012979,2]
[327004307,1715703045587,-372.1,0.00012979,2]
[327004308,1715703045596,-554.92,0.00012979,2]
[327004309,1715703045605,-7189.94,0.00012979,2]
[327004310,1715703045614,-7189.94,0.00012979,2]
[327004311,1715703045624,-500.0,0.00012979,2]
[327004312,1715703045633,-500.0,0.00012979,2]
[327004313,1715703045642,-500.0,0.00012979,2]
[327004314,1715703045653,-500.0,0.00012979,2]
[327004315,1715703045662,-500.0,0.00012979,2]
[327004316,1715703045672,-67969.74816247,0.0001298,6]
[327004317,1715703045688,-824.60219116,0.0001298,6]
[327004318,1715703045703,-3234.79929208,0.0001298,6]
[327004319,1715703045736,-589.68356792,0.0001298,6]
[327004320,1715703045747,-622.51704988,0.0001298,6]
[327004321,1715703045758,-250215.79989943,0.0001298,6]
[327004322,1715703045773,-321.28,0.00012982,2]
[327004323,1715703045788,-500.0,0.00012982,2]
[327004324,1715703045802,-500.0,0.00012982,2]
[327004325,1715703045815,-500.0,0.00012982,2]
[327004326,1715703045826,-500.0,0.00012982,2]
[327004327,1715703045837,-500.0,0.00012982,2]
[327004328,1715703045850,-500.0,0.00012982,2]
[327004329,1715703045862,-533.41460286,0.00012982,2]
[327004330,1715703045874,-500.0,0.00012982,2]
[327004331,1715703045888,-500.0,0.00012982,2]
[327004332,1715703045900,-500.0,0.00012982,2]
[327004333,1715703045912,-1459.51,0.00012982,2]
[327004334,1715703045926,-500.0,0.00012982,2]
[327004335,1715703045940,-500.0,0.00012982,2]
[327004336,1715703045952,-500.0,0.00012982,2]
[327004337,1715703045964,-500.0,0.00012982,2]
[327004338,1715703045981,-500.0,0.00012982,2]
[327004339,1715703045992,-1122.52,0.00012982,2]
[327004340,1715703046006,-500.0,0.00012982,2]
[327004341,1715703046020,-500.0,0.00012982,2]
[327004342,1715703046032,-610.0,0.00012982,2]
[327004343,1715703046043,-500.0,0.00012982,2]
[327004344,1715703046055,-500.0,0.00012982,2]
[327004345,1715703046066,-500.0,0.00012982,2]
[327004346,1715703046078,-500.0,0.00012982,2]
[327004347,1715703046091,-500.0,0.00012982,2]
[327004348,1715703046103,-546.88,0.00012982,2]
[327004349,1715703046116,-500.0,0.00012982,2]
[327004350,1715703046128,-234.28929534,0.00012982,2]
[327004351,1715703046140,-500.0,0.00012982,2]
[327004352,1715703046154,-500.0,0.00012982,2]
[327004353,1715703046166,-500.0,0.00012982,2]
[327004354,1715703046179,-996.95,0.00012982,2]
[327004355,1715703046190,-500.0,0.00012982,2]
[327004357,1715703046200,-500.0,0.00012982,2]
[327004358,1715703046215,-500.0,0.00012982,2]
[327004359,1715703046225,-150.0,0.00012982,2]
[327004360,1715703046238,-500.0,0.00012982,2]
[327004361,1715703046250,-494.84009006,0.00012982,2]
[327004362,1715703046289,-5.15990994,0.00012982,2]
[327004363,1715703046301,-500.0,0.00012982,2]
[327004364,1715703046312,-690.24,0.00012982,2]
[327004365,1715703046327,-500.0,0.00012982,2]
[327004366,1715703046339,-500.0,0.00012982,2]
[327004367,1715703046350,-500.0,0.00012982,2]
[327004368,1715703046361,-554.35,0.00012982,2]
[327004369,1715703046371,-500.0,0.00012982,2]
[327004370,1715703046382,-585.83,0.00012982,2]
[327004371,1715703046405,-500.0,0.00012982,2]
[327004372,1715703046418,-500.0,0.00012982,2]
[327004373,1715703046430,-500.0,0.00012982,2]
[327004374,1715703046441,-500.0,0.00012982,2]
[327004375,1715703046455,-500.0,0.00012982,2]
[327004376,1715703046467,-441.81291229,0.00012982,2]
[327004377,1715703046480,-500.0,0.00012982,2]
[327004378,1715703046492,-500.0,0.00012982,2]
[327004379,1715703046504,-500.0,0.00012982,2]
[327004380,1715703046515,-500.0,0.00012982,2]
[327004381,1715703046527,-500.0,0.00012982,2]
[327004382,1715703046539,-500.0,0.00012982,2]
[327004383,1715703046550,-500.0,0.00012982,2]
[327004384,1715703046562,-500.0,0.00012982,2]
[327004385,1715703046572,-500.0,0.00012982,2]
[327004386,1715703046583,-500.0,0.00012982,2]
[327004387,1715703046595,-500.0,0.00012982,2]
[327004388,1715703046606,-500.0,0.00012982,2]
[327004389,1715703046617,-500.0,0.00012982,2]
[327004390,1715703046628,-500.0,0.00012982,2]
[327004391,1715703046640,-500.0,0.00012982,2]
[327004392,1715703046654,-500.0,0.00012982,2]
[327004393,1715703046664,-500.0,0.00012982,2]
[327004394,1715703046676,-500.0,0.00012982,2]
[327004395,1715703046688,-500.0,0.00012982,2]
[327004396,1715703046699,-500.0,0.00012982,2]
[327004397,1715703046711,-500.0,0.00012982,2]
[327004399,1715703046721,-500.0,0.00012982,2]
[327004401,1715703046733,-500.0,0.00012982,2]
[327004403,1715703046744,-500.0,0.00012982,2]
[327004406,1715703046757,-500.0,0.00012982,2]
[327004407,1715703046768,-500.0,0.00012982,2]
[327004408,1715703046779,-500.0,0.00012982,2]
[327004409,1715703046791,-500.0,0.00012982,2]
[327004410,1715703046802,-500.0,0.00012982,2]
[327004411,1715703046813,-500.0,0.00012982,2]
[327004412,1715703046825,-1250.64,0.00012982,2]
[327004413,1715703046836,-500.0,0.00012982,2]
[327004414,1715703046847,-531.77597243,0.00012982,2]
[327004415,1715703046858,-500.0,0.00012982,2]
[327004416,1715703046870,-528.16,0.00012982,2]
[327004417,1715703046881,-500.0,0.00012982,2]
[327004418,1715703046893,-500.0,0.00012982,2]
[327004419,1715703046907,-500.0,0.00012982,2]
[327004420,1715703046918,-500.0,0.00012982,2]
[327004421,1715703046929,-500.0,0.00012982,2]
[327004422,1715703046939,-528.04783023,0.00012982,2]
[327004423,1715703046950,-530.74514929,0.00012982,2]
[327004424,1715703046961,-1335.83,0.00012982,2]
[327004425,1715703046974,-500.0,0.00012982,2]
[327004426,1715703046986,-500.0,0.00012982,2]
[327004427,1715703046997,-697.12,0.00012982,2]
[327004428,1715703047009,-500.0,0.00012982,2]
[327004429,1715703047023,-500.0,0.00012982,2]
[327004430,1715703047034,-500.0,0.00012982,2]
[327004431,1715703047046,-1109.46,0.00012982,2]
[327004432,1715703047059,-500.0,0.00012982,2]
[327004433,1715703047070,-500.0,0.00012982,2]
[327004434,1715703047082,-1118.01,0.00012982,2]
[327004435,1715703047093,-500.0,0.00012982,2]
[327004436,1715703047104,-626.23,0.00012982,2]
[327004437,1715703047116,-500.0,0.00012982,2]
[327004438,1715703047127,-512.86,0.00012982,2]
[327004439,1715703047139,-938.9,0.00012982,2]
[327004440,1715703047153,-500.0,0.00012982,2]
[327004441,1715703047164,-500.0,0.00012982,2]
[327004442,1715703047175,-1600.45,0.00012982,2]
[327004443,1715703047186,-1472.15,0.00012982,2]
[327004444,1715703047197,-1039.39,0.00012982,2]
[327004445,1715703047208,-1232.12,0.00012982,2]
[327004446,1715703047219,-575.75,0.00012982,2]
[327004447,1715703047231,-1323.14,0.00012982,2]
[327004448,1715703047242,-500.0,0.00012982,2]
[327004449,1715703047253,-873.45,0.00012982,2]
[327004450,1715703047266,-500.0,0.00012982,2]
[327004451,1715703047277,-500.0,0.00012982,2]
[327004452,1715703047288,-554.92,0.00012982,2]
[327004453,1715703047300,-500.0,0.00012982,2]
[327004454,1715703047311,-500.0,0.00012983,2]
[327004455,1715703047322,-500.0,0.00012983,2]
[327004456,1715703047334,-500.0,0.00012983,2]
[327004457,1715703047345,-500.0,0.00012983,2]
[327004458,1715703047357,-521.82501226,0.00012983,2]
[327004459,1715703047369,-298.45,0.00012983,2]
[327004460,1715703047381,-500.0,0.00012983,2]
[327004461,1715703047393,-500.0,0.00012983,2]
[327004462,1715703047407,-500.0,0.00012983,2]
[327004463,1715703047418,-500.0,0.00012983,2]
[327004464,1715703047429,-500.0,0.00012983,2]
[327004465,1715703047441,-500.0,0.00012983,2]
[327004466,1715703047452,-500.0,0.00012983,2]
[327004467,1715703047464,-500.0,0.00012983,2]
[327004468,1715703047476,-500.0,0.00012983,2]
[327004469,1715703047488,-153.85,0.00012983,2]
[327004470,1715703047499,-613.15,0.00012983,2]
[327004471,1715703047522,-500.0,0.00012983,2]
[327004472,1715703047540,-500.0,0.00012983,2]
[327004473,1715703047555,-500.0,0.00012983,2]
[327004474,1715703047570,-427.70991151,0.00012983,2]
[327004475,1715703047594,-72.29008849,0.00012983,2]
[327004476,1715703047604,-500.0,0.00012983,2]
[327004477,1715703047613,-90.45565684,0.00012983,2]
[327004478,1715703047625,-292.78558546,0.00012983,2]
[327004479,1715703047637,-141.8887577,0.00012983,2]
[327004480,1715703047646,-500.0,0.00012983,2]
[327004481,1715703047658,-500.0,0.00012983,2]
[327004482,1715703047668,-500.0,0.00012983,2]
[327004483,1715703047677,-500.0,0.00012983,2]
[327004484,1715703047687,-418.0594923,0.00012983,2]
[327004485,1715703047699,-81.9405077,0.00012983,2]
[327004486,1715703047708,-295.0154263,0.00012983,2]
[327004487,1715703047726,-204.9845737,0.00012983,2]
[327004488,1715703047736,-426.5654263,0.00012983,2]
[327004489,1715703048203,-73.4345737,0.00012983,2]
[327004490,1715703048212,-500.0,0.00012983,2]
[327004491,1715703048221,-500.0,0.00012983,2]
[327004492,1715703048230,-500.0,0.00012983,2]
[327004493,1715703048239,-500.0,0.00012983,2]
[327004494,1715703048248,-500.0,0.00012983,2]
[327004495,1715703048257,-500.0,0.00012983,2]
[327004496,1715703048268,-64.68613463,0.00012983,2]
[327004497,1715703048284,-389.03079216,0.00012983,2]
[327004498,1715703048297,-46.28307321,0.00012983,2]
[327004499,1715703048306,-248.20221821,0.00012983,2]
[327004500,1715703048316,-500.0,0.00012983,2]
[327004501,1715703048326,-524.96871969,0.00012983,2]
[327004502,1715703048335,-500.0,0.00012983,2]
[327004503,1715703048344,-500.0,0.00012983,2]
[327004504,1715703048353,-685.22,0.00012983,2]
[327004505,1715703048362,-500.0,0.00012983,2]
[327004506,1715703048371,-500.0,0.00012983,2]
[327004507,1715703048380,-500.0,0.00012983,2]
[327004508,1715703048389,-500.0,0.00012983,2]
[327004509,1715703048398,-500.0,0.00012983,2]
[327004510,1715703048409,-1112.972,0.00012983,2]
[327004511,1715703048418,-212.972,0.00012983,2]
[327004512,1715703048427,-500.0,0.00012991,2]
[327004513,1715703048436,-500.0,0.00012991,2]
[327004514,1715703048446,-500.0,0.00012991,2]
[327004515,1715703048455,-500.0,0.00012991,2]
[327004516,1715703048470,-500.0,0.00012991,2]
[327004517,1715703048479,-500.0,0.00012991,2]
[327004518,1715703048489,-500.0,0.00012991,2]
[327004519,1715703048498,-500.0,0.00012991,2]
[327004520,1715703048508,-491.68266721,0.00012991,2]
[327004521,1715703048520,-8.31733279,0.00012991,2]
[327004522,1715703048529,-500.0,0.00012991,2]
[327004523,1715703048539,-1222.09,0.00012991,2]
[327004524,1715703048549,-2430.9,0.00012991,2]
[327004525,1715703048558,-500.0,0.00012991,2]
[327004526,1715703048568,-241.92,0.00012991,2]
[327004527,1715703048577,-624.85,0.00012991,2]
[327004528,1715703048587,-500.0,0.00012991,2]
[327004529,1715703048596,-927.85,0.00012991,2]
[327004530,1715703048605,-500.0,0.00012991,2]
[327004531,1715703048614,-500.0,0.00012991,2]
[327004532,1715703048624,-689.46,0.00012991,2]
[327004533,1715703048634,-500.0,0.00012991,2]
[327004534,1715703048644,-500.0,0.00012991,2]
[327004535,1715703048655,-590.39,0.00012991,2]
[327004536,1715703048664,-638.92,0.00012991,2]
[327004537,1715703048673,-500.0,0.00012991,2]
[327004538,1715703048683,-500.0,0.00012991,2]
[327004539,1715703048692,-500.0,0.00012991,2]
[327004540,1715703048702,-500.0,0.00012991,2]
[327004541,1715703048711,-500.0,0.00012991,2]
[327004542,1715703048720,-500.0,0.00012991,2]
[327004543,1715703048730,-826.6,0.00012991,2]
[327004544,1715703048739,-944.27,0.00012991,2]
[327004545,1715703048748,-639.53,0.00012991,2]
[327004546,1715703048758,-562.42,0.00012991,2]
[327004547,1715703048767,-156.75999922,0.00012991,2]
[327004548,1715703048783,-343.24000078,0.00012991,2]
[327004549,1715703048792,-500.0,0.00012991,2]
[327004550,1715703048802,-2715.59,0.00012991,2]
[327004551,1715703048811,-500.0,0.00012991,2]
[327004552,1715703048820,-500.0,0.00012991,2]
[327004553,1715703048830,-842.56,0.00012991,2]
[327004554,1715703048839,-3001.84,0.00012991,2]
[327004555,1715703048848,-7189.94,0.00012991,2]
[327004556,1715703048857,-500.0,0.00012991,2]